bitfinex-derivatives/quotes_BTCF0:USTF0_20250709
["timestamp","ask_amount","ask_price","bid_price","bid_amount"]
[1752092909531,0.21657975,111060.0,111050.0,1.75671109]
[1752092909730,0.38186935,111060.0,111050.0,1.76149109]
[1752092909923,0.02106935,111060.0,111050.0,1.76149109]
[1752092910127,0.02106935,111060.0,111050.0,1.11273109]
[1752092910327,0.02106935,111060.0,111050.0,1.76157109]
[1752092910528,0.002,111060.0,111050.0,1.76157109]
[1752092910728,0.002,111060.0,111050.0,2.26157109]
[1752092910928,0.002,111060.0,111050.0,1.26821481]
[1752092911128,0.002,111060.0,111050.0,2.36938315]
[1752092911328,0.542841,111060.0,111050.0,2.36938315]
[1752092911525,0.558311,111060.0,111050.0,1.26821481]
[1752092911834,0.9151657,111060.0,111050.0,1.13737106]
[1752092912027,1.0061657,111060.0,111050.0,0.44064907]
[1752092912228,1.0962657,111060.0,111050.0,0.44064907]
[1752092912830,1.7451057,111060.0,111050.0,0.44064907]
[1752092913030,1.7451057,111060.0,111050.0,0.35991079]
[1752092913833,1.7451057,111060.0,111050.0,0.53996789]
[1752092914435,1.7451057,111060.0,111050.0,0.53696809]
[1752092915030,1.7531357,111060.0,111050.0,0.35691079]
[1752092915427,1.7531357,111060.0,111050.0,0.35707372]
[1752092915636,1.7531357,111060.0,111050.0,0.53713102]
[1752092916630,0.75977942,111060.0,111050.0,0.55364102]
[1752092916831,0.57064942,111060.0,111050.0,0.64354102]
[1752092917139,0.57064942,111060.0,111050.0,0.73714102]
[1752092917523,0.39060842,111060.0,111050.0,0.73714102]
[1752092917727,0.57064922,111060.0,111050.0,0.73714102]
[1752092918128,0.57064922,111060.0,111050.0,0.7230673]
[1752092918334,0.57064922,111060.0,111050.0,0.76714047]
[1752092918729,0.39060842,111060.0,111050.0,0.79101047]
[1752092918935,0.02980842,111060.0,111050.0,0.79101047]
[1752092919130,0.37827,111060.0,111050.0,0.79101047]
[1752092919332,0.3628,111060.0,111050.0,1.21626503]
[1752092919838,0.5428407,111060.0,111050.0,1.17626503]
[1752092920041,0.5428407,111060.0,111050.0,0.75101047]
[1752092920243,0.3628,111060.0,111050.0,0.75101047]
[1752092920532,0.3628,111060.0,111050.0,0.83174875]
[1752092920834,0.5428407,111060.0,111050.0,1.09552675]
[1752092921038,0.3628,111060.0,111050.0,1.74440675]
[1752092921337,0.3628,111060.0,111050.0,1.09552675]
[1752092921537,0.5428407,111060.0,111050.0,1.39989047]
[1752092921736,0.5587807,111060.0,111050.0,1.39989047]
[1752092921938,0.5587807,111060.0,111050.0,1.39988991]
[1752092922528,0.5587807,111060.0,111050.0,1.37601991]
[1752092923241,0.5587807,111060.0,111050.0,1.39601991]
[1752092924141,0.5597807,111060.0,111050.0,1.39601991]
[1752092924735,0.5597807,111060.0,111050.0,1.41601991]
[1752092925542,0.5597807,111060.0,111050.0,1.49675819]
[1752092925844,0.5597807,111060.0,111050.0,1.41601991]
[1752092926036,0.5597807,111060.0,111050.0,1.41597991]
[1752092926633,0.5597807,111060.0,111050.0,1.41593991]
[1752092927036,0.5597807,111060.0,111050.0,1.4018673]
[1752092927238,0.5597807,111060.0,111050.0,1.41593986]
[1752092928242,0.5597807,111060.0,111050.0,1.47667814]
[1752092928840,0.5597807,111060.0,111050.0,0.82787814]
[1752092929051,0.5597807,111060.0,111050.0,1.47663814]
[1752092929642,0.003,111060.0,111050.0,1.71777614]
[1752092929947,0.3638,111060.0,111050.0,1.8255882]
[1752092930150,0.3638,111060.0,111050.0,1.84255267]
[1752092930151,0.003,111060.0,111050.0,1.84255267]
[1752092930446,0.3638,111060.0,111050.0,1.84255267]
[1752092930646,0.3638,111060.0,111050.0,1.08598061]
[1752092930942,0.3638,111060.0,111050.0,1.81560041]
[1752092931135,0.3638,111060.0,111050.0,1.47108413]
[1752092931742,0.003,111060.0,111050.0,1.47108413]
[1752092932148,0.3638,111060.0,111050.0,1.47108413]
[1752092933345,0.37952507,111070.0,111060.0,0.1800412]
[1752092933552,0.3608,111070.0,111060.0,1.12642006]
[1752092934550,0.3618,111070.0,111060.0,1.12842006]
[1752092934951,0.3618,111070.0,111060.0,1.15229006]
[1752092935253,0.3618,111070.0,111060.0,1.16229006]
[1752092935946,0.3618,111070.0,111060.0,1.66229006]
[1752092936354,0.3618,111070.0,111060.0,1.31777378]
[1752092936647,0.5577648,111070.0,111060.0,1.92637378]
[1752092936853,0.58988448,111070.0,111060.0,1.83297378]
[1752092937051,0.79967448,111070.0,111060.0,1.83297378]
[1752092937561,0.79967448,111070.0,111060.0,1.33297378]
[1752092937851,0.79967448,111070.0,111060.0,0.68437378]
[1752092938056,0.77468448,111070.0,111060.0,0.70050378]
[1752092938243,0.77468448,111070.0,111060.0,0.61964398]
[1752092938244,0.79343747,111070.0,111060.0,0.61964398]
[1752092938440,0.61341267,111070.0,111060.0,0.61964398]
[1752092938748,0.79343767,111070.0,111060.0,0.74050378]
[1752092938947,0.61341267,111070.0,111060.0,1.48446378]
[1752092939146,0.52081267,111070.0,111060.0,0.83590378]
[1752092939345,0.52081267,111070.0,111060.0,1.48446378]
[1752092939552,0.52081267,111070.0,111060.0,1.48446318]
[1752092939853,0.52081267,111070.0,111060.0,1.48446317]
[1752092940353,0.41267267,111070.0,111060.0,1.49220317]
[1752092940558,0.41267267,111070.0,111060.0,1.83671945]
[1752092941353,0.39391968,111070.0,111060.0,1.83671945]
[1752092941562,0.3618,111070.0,111060.0,1.83671945]
[1752092941756,0.001,111070.0,111060.0,2.33671945]
[1752092942056,0.3618,111070.0,111060.0,2.33671945]
[1752092942451,0.001,111070.0,111060.0,2.33671945]
[1752092943251,0.001,111070.0,111060.0,2.32671945]
[1752092943452,0.3618,111070.0,111060.0,2.32671945]
[1752092943951,0.001,111070.0,111060.0,2.32671945]
[1752092944657,0.001,111070.0,111060.0,2.31671945]
[1752092944955,0.3618,111070.0,111060.0,2.31671945]
[1752092945158,0.001,111070.0,111060.0,2.31671945]
[1752092945456,0.001,111070.0,111060.0,2.3167182]
[1752092948158,0.001,111070.0,111060.0,1.9767182]
[1752092948364,0.001,111070.0,111060.0,2.3367182]
[1752092948656,0.3618,111070.0,111060.0,2.3367182]
[1752092948862,0.3618,111070.0,111060.0,2.26801605]
[1752092949161,0.001,111070.0,111060.0,2.26801605]
[1752092949661,0.001,111070.0,111060.0,2.21801605]
[1752092950051,0.3618,111070.0,111060.0,2.21801605]
[1752092950947,0.39388004,111070.0,111060.0,2.21801605]
[1752092951151,0.39388004,111070.0,111060.0,2.21801658]
[1752092951346,0.03308004,111070.0,111060.0,2.21801658]
[1752092951554,0.39388004,111070.0,111060.0,2.21801658]
[1752092951847,0.03308004,111070.0,111060.0,2.21801658]
[1752092952052,0.03308075,111070.0,111060.0,2.21801658]
[1752092952263,0.001,111070.0,111060.0,2.21801658]
[1752092952460,0.03307841,111070.0,111060.0,2.21801658]
[1752092952847,0.03307841,111070.0,111060.0,1.26977245]
[1752092953052,0.90170285,111070.0,111060.0,1.73513245]
[1752092953256,0.63776252,111070.0,111060.0,1.73513245]
[1752092953456,0.63776252,111070.0,111060.0,2.01094658]
[1752092953656,0.58119842,111070.0,111060.0,1.73513245]
[1752092953856,0.58119842,111070.0,111060.0,1.51094658]
[1752092954357,0.58119842,111070.0,111060.0,1.43008678]
[1752092954560,0.58119842,111070.0,111060.0,1.51107013]
[1752092954860,0.58119842,111070.0,111060.0,1.56107013]
[1752092955255,0.22039842,111070.0,111060.0,1.56107013]
[1752092955462,0.22039842,111070.0,111060.0,1.48008678]
[1752092955663,0.22039842,111070.0,111060.0,1.5210681]
[1752092956658,0.58119842,111070.0,111060.0,0.8729081]
[1752092956862,0.58119842,111070.0,111060.0,1.5209481]
[1752092957864,0.58119842,111070.0,111060.0,1.24513397]
[1752092958060,0.58119842,111070.0,111060.0,1.5209481]
[1752092958253,0.22039842,111070.0,111060.0,1.5209481]
[1752092958448,0.22039842,111070.0,111060.0,1.43996678]
[1752092958449,0.56603842,111070.0,111060.0,1.43996678]
[1752092958651,0.58119842,111070.0,111060.0,1.52094808]
[1752092958862,0.56603842,111070.0,111060.0,1.70834808]
[1752092959062,0.02849842,111070.0,111060.0,1.70834808]
[1752092959257,0.38929842,111070.0,111060.0,1.62736678]
[1752092959568,0.38929842,111070.0,111060.0,1.70834356]
[1752092959765,0.38929842,111070.0,111060.0,1.43252943]
[1752092959964,0.48579842,111070.0,111060.0,0.96990356]
[1752092960160,0.57409842,111070.0,111060.0,0.98544356]
[1752092960368,0.21329842,111070.0,111060.0,1.61786356]
[1752092960664,0.57409842,111070.0,111060.0,1.61786356]
[1752092961266,0.57409842,111070.0,111060.0,1.34204943]
[1752092961463,0.60611492,111070.0,111060.0,0.69408943]
[1752092961764,0.60611492,111070.0,111060.0,1.63340356]
[1752092961964,0.60611492,111070.0,111060.0,1.61786356]
[1752092962165,0.63069492,111070.0,111060.0,1.61786356]
[1752092962561,0.59867842,111070.0,111060.0,1.61786356]
[1752092962963,0.59867842,111070.0,111060.0,1.61786376]
[1752092963666,0.60612233,111070.0,111060.0,1.34204963]
[1752092963869,0.57409842,111070.0,111060.0,1.61786376]
[1752092964668,0.57409842,111070.0,111060.0,1.60786376]
[1752092965468,0.57409842,111070.0,111060.0,0.95990376]
[1752092965667,0.57409842,111070.0,111060.0,1.54226698]
[1752092965870,0.57409842,111070.0,111060.0,1.62327246]
[1752092966169,0.57409842,111070.0,111060.0,0.97547246]
[1752092966371,0.21329842,111070.0,111060.0,0.95993246]
[1752092966567,0.57409842,111070.0,111060.0,1.44522697]
[1752092966768,0.57409842,111070.0,111060.0,1.51069634]
[1752092966969,0.59867842,111070.0,111060.0,1.51069634]
[1752092967472,0.57409842,111070.0,111060.0,1.51069634]
[1752092967663,0.21329842,111070.0,111060.0,1.60329634]
[1752092967858,0.37413842,111070.0,111060.0,1.62601556]
[1752092968063,0.37413842,111070.0,111060.0,1.06795556]
[1752092968263,0.40616641,111070.0,111060.0,1.74567556]
[1752092968471,0.42132641,111070.0,111060.0,1.74567556]
[1752092968672,0.42132641,111070.0,111060.0,1.72295556]
[1752092969867,0.06052641,111070.0,111060.0,1.05523556]
[1752092970072,0.72394774,111070.0,111060.0,0.59712143]
[1752092970273,1.08474774,111070.0,111060.0,1.24476143]
[1752092971767,1.08474774,111070.0,111060.0,1.2447621]
[1752092973376,0.62890641,111070.0,111060.0,1.2947621]
[1752092973576,0.80893361,111070.0,111060.0,1.2947621]
[1752092973772,0.26810641,111070.0,111060.0,1.2947621]
[1752092974080,0.62890641,111070.0,111060.0,1.2947621]
[1752092974371,0.60432641,111070.0,111060.0,1.2947621]
[1752092974672,0.40616641,111070.0,111060.0,1.60329623]
[1752092974870,0.04536641,111070.0,111060.0,1.78239623]
[1752092975076,0.40616641,111070.0,111060.0,1.78239623]
[1752092975274,0.04536641,111070.0,111060.0,1.78239623]
[1752092976179,0.01333842,111070.0,111060.0,2.05821036]
[1752092976367,0.01333842,111070.0,111060.0,1.78239623]
[1752092976980,0.01333842,111070.0,111060.0,2.06218764]
[1752092977377,0.01333842,111070.0,111060.0,1.70138764]
[1752092977574,0.01333842,111070.0,111060.0,1.7823856]
[1752092977974,0.01333842,111070.0,111060.0,1.70138764]
[1752092978181,0.01333842,111070.0,111060.0,1.63138764]
[1752092978483,0.01333842,111070.0,111060.0,1.99218764]
[1752092978984,0.01333842,111070.0,111060.0,2.0999997]
[1752092979284,0.01333842,111070.0,111060.0,1.99218764]
[1752092979482,0.01333842,111070.0,111060.0,1.63138764]
[1752092979684,0.01333842,111070.0,111060.0,1.65138764]
[1752092979877,0.01333842,111070.0,111060.0,2.01218764]
[1752092980182,0.01333842,111070.0,111060.0,1.73237608]
[1752092980982,0.38972842,111070.0,111060.0,1.73197608]
[1752092981183,0.42173047,111070.0,111060.0,1.73197655]
[1752092982181,0.38972842,111070.0,111060.0,1.73197655]
[1752092982484,0.06093017,111070.0,111060.0,1.70925655]
[1752092982684,0.42173019,111070.0,111060.0,1.70925655]
[1752092982982,0.06093019,111070.0,111060.0,1.08701655]
[1752092983282,0.42185803,111070.0,111060.0,1.73425655]
[1752092983483,0.06105803,111070.0,111060.0,1.40425655]
[1752092983684,0.38972842,111070.0,111060.0,1.75425655]
[1752092984078,0.38972842,111070.0,111060.0,1.67326764]
[1752092984286,0.38972842,111070.0,111060.0,1.47845101]
[1752092984477,0.02892842,111070.0,111060.0,1.75426514]
[1752092984672,0.38972842,111070.0,111060.0,1.67326764]
[1752092984886,0.38972842,111070.0,111060.0,1.75426324]
[1752092985074,0.02892842,111070.0,111060.0,1.75426324]
[1752092985280,0.02892842,111070.0,111060.0,1.67326764]
[1752092985582,0.37413842,111070.0,111060.0,1.69326764]
[1752092986086,0.01333842,111070.0,111060.0,1.04602764]
[1752092986281,0.37413842,111070.0,111060.0,1.77405947]
[1752092986486,0.40628255,111070.0,111060.0,1.77405947]
[1752092986884,0.01333842,111070.0,111060.0,1.77405947]
[1752092987678,0.04548275,111070.0,111060.0,1.77405947]
[1752092988179,0.01333842,111070.0,111060.0,1.77405947]
[1752092988888,0.01333842,111070.0,111060.0,1.8008797]
[1752092989478,0.01333842,111070.0,111060.0,1.69306764]
[1752092989675,0.01333842,111070.0,111060.0,1.64306764]
[1752092989889,0.37413842,111070.0,111060.0,1.64306764]
[1752092990081,0.37413842,111070.0,111060.0,1.63306764]
[1752092990281,0.01333842,111070.0,111060.0,1.63306764]
[1752092990683,0.37413842,111070.0,111060.0,1.92766764]
[1752092991184,0.01333842,111070.0,111060.0,1.92766764]
[1752092991589,0.37413842,111070.0,111060.0,1.92766764]
[1752092991789,0.37413842,111070.0,111060.0,1.65185351]
[1752092992089,0.38972842,111070.0,111060.0,1.92766676]
[1752092992786,0.38972842,111070.0,111060.0,1.00481263]
[1752092992994,0.38972842,111070.0,111060.0,1.92738676]
[1752092993294,0.38972842,111070.0,111060.0,0.80071263]
[1752092993477,0.47562842,111070.0,111060.0,1.46322263]
[1752092993683,0.47562842,111070.0,111060.0,1.73903676]
[1752092993890,0.47562842,111070.0,111060.0,1.26661016]
[1752092994096,0.47562842,111070.0,111060.0,1.89750016]
[1752092994293,0.56182842,111070.0,111060.0,1.89750016]
[1752092994788,0.56182842,111070.0,111060.0,1.94750016]
[1752092996088,0.59396514,111070.0,111060.0,1.94750016]
[1752092996294,0.23316514,111070.0,111060.0,1.94750016]
[1752092996486,0.20102842,111070.0,111060.0,1.94750016]
[1752092996689,0.56182842,111070.0,111060.0,1.65290016]
[1752092996888,0.5939644,111070.0,111060.0,1.65290016]
[1752092997095,0.79894877,111070.0,111060.0,1.28362603]
[1752092997290,0.61892197,111070.0,111060.0,1.28362603]
[1752092997892,0.61892197,111070.0,111060.0,1.2695546]
[1752092998092,0.61892197,111070.0,111060.0,1.28362677]
[1752092998295,0.61892197,111070.0,111060.0,1.23362677]
[1752092998497,0.25812197,111070.0,111060.0,1.23362677]
[1752092998796,0.58678842,111070.0,111060.0,1.23362677]
[1752092998991,0.56182842,111070.0,111060.0,1.23362677]
[1752092999297,0.02892842,111070.0,111060.0,1.15263337]
[1752092999592,0.02892842,111070.0,111060.0,1.33503337]
[1752092999795,0.38972842,111070.0,111060.0,1.39503337]
[1752092999989,0.38972842,111070.0,111060.0,1.6708475]
[1752093000191,0.02892842,111070.0,111060.0,1.6708475]
[1752093000391,0.47962842,111070.0,111060.0,1.6708475]
[1752093000696,0.57082842,111070.0,111060.0,1.6708475]
[1752093000892,0.57082842,111070.0,111060.0,1.39503337]
[1752093001191,0.57082842,111070.0,111060.0,0.82950981]
[1752093001391,0.57082842,111070.0,111060.0,1.40431981]
[1752093001606,0.59578842,111070.0,111060.0,1.38852981]
[1752093003394,0.59578842,111070.0,111060.0,1.32852981]
[1752093003590,0.80796807,111070.0,111060.0,1.32848981]
[1752093003794,1.05162895,111070.0,111060.0,0.58711121]
[1752093003996,1.08378247,111070.0,111060.0,0.58711121]
[1752093004396,1.04323247,111070.0,111060.0,0.58711121]
[1752093004597,1.06819247,111070.0,111060.0,0.32607217]
[1752093004798,1.06819247,111070.0,111060.0,0.37607217]
[1752093004799,1.07589102,111070.0,111060.0,0.37607217]
[1752093004999,1.07589102,111070.0,111060.0,0.55611517]
[1752093005696,1.72205102,111070.0,111060.0,0.55611517]
[1752093005903,1.72205102,111070.0,111060.0,0.55611636]
[1752093006306,1.72205102,111070.0,111060.0,0.37607336]
[1752093006603,1.72201102,111070.0,111060.0,0.37607336]
[1752093006901,1.72201102,111070.0,111060.0,0.55611606]
[1752093007100,1.72201102,111070.0,111060.0,0.37607336]
[1752093007492,1.72201102,111070.0,111060.0,0.55611596]
[1752093007690,1.71431247,111070.0,111060.0,0.55611596]
[1752093007899,1.68935247,111070.0,111060.0,0.55611596]
[1752093008101,1.71431247,111070.0,111060.0,0.55611596]
[1752093008399,1.71431247,111070.0,111060.0,0.51611596]
[1752093008804,1.71431247,111070.0,111060.0,0.51611571]
[1752093009000,1.71423247,111070.0,111060.0,0.51611571]
[1752093009306,1.71423247,111070.0,111060.0,0.53172571]
[1752093009500,1.06819247,111070.0,111060.0,0.53172571]
[1752093009703,1.71423247,111070.0,111060.0,0.54172571]
[1752093009904,1.71419247,111070.0,111060.0,0.54172571]
[1752093010693,1.71419247,111070.0,111060.0,0.52611571]
[1752093010905,1.71419247,111070.0,111060.0,0.52611291]
[1752093013409,1.71407247,111070.0,111060.0,0.52611291]
[1752093014502,0.70739247,111070.0,111060.0,0.54172291]
[1752093014703,1.72942247,111070.0,111060.0,0.51611218]
[1752093016503,1.72942247,111070.0,111060.0,0.33607238]
[1752093016708,1.72942247,111070.0,111060.0,0.51611318]
[1752093017604,1.72942247,111070.0,111060.0,0.51611403]
[1752093018197,1.72942247,111070.0,111060.0,0.35607323]
[1752093019109,1.72942247,111070.0,111060.0,0.53611453]
[1752093019311,1.72942247,111070.0,111060.0,0.35607323]
[1752093019712,1.72942247,111070.0,111060.0,0.32607323]
[1752093019907,1.72842247,111070.0,111060.0,0.32607323]
[1752093020110,1.72942247,111070.0,111060.0,0.50711403]
[1752093020311,1.72942247,111070.0,111060.0,0.32707323]
[1752093020606,1.08358247,111070.0,111060.0,0.50511183]
[1752093020810,1.08558247,111070.0,111060.0,0.32507323]
[1752093021307,1.08758247,111070.0,111060.0,0.32507323]
[1752093023206,1.08758247,111070.0,111060.0,0.50511213]
[1752093024312,1.73314247,111070.0,111060.0,0.50511213]
[1752093026512,0.81176834,111070.0,111060.0,0.52072213]
[1752093026715,0.39795352,111070.0,111060.0,0.97443626]
[1752093027017,0.57797622,111070.0,111060.0,0.97443626]
[1752093027203,0.39795352,111070.0,111060.0,0.97443626]
[1752093027808,0.59031464,111070.0,111060.0,0.69862213]
[1752093028015,1.22692877,111070.0,111060.0,0.69862213]
[1752093028218,1.24231877,111070.0,111060.0,1.35398213]
[1752093028415,0.88151877,111070.0,111060.0,0.33507323]
[1752093028716,1.05691877,111070.0,111060.0,0.33507323]
[1752093029721,1.05691877,111070.0,111060.0,0.39507323]
[1752093030711,1.04152877,111070.0,111060.0,0.39507323]
[1752093030919,1.06456877,111070.0,111060.0,0.39507323]
[1752093033325,1.06456877,111070.0,111060.0,0.34507323]
[1752093034522,1.3403829,111070.0,111060.0,0.34507323]
[1752093034723,1.06456877,111070.0,111060.0,0.321]
[1752093034921,0.1800714,111040.0,111030.0,0.14519151]
[1752093035119,1.50019553,111040.0,111030.0,0.38253967]
[1752093035313,1.50019553,111040.0,111030.0,0.72883967]
[1752093035517,1.47715553,111040.0,111030.0,0.72883967]
[1752093035712,1.50019553,111040.0,111030.0,0.72883967]
[1752093036120,1.50119553,111040.0,111030.0,0.73083967]
[1752093036319,1.50119553,111040.0,111030.0,0.64984323]
[1752093036520,1.50119553,111040.0,111030.0,0.60482223]
[1752093036921,1.50119553,111040.0,111030.0,0.60782223]
[1752093037325,1.50119553,111040.0,111030.0,0.70782223]
[1752093037526,1.50119553,111040.0,111030.0,0.40782223]
[1752093037725,1.53407869,111040.0,111030.0,0.40782223]
[1752093038126,1.53407869,111040.0,111030.0,0.49345749]
[1752093038430,1.53406617,111040.0,111030.0,0.49345749]
[1752093039225,1.53406719,111040.0,111030.0,0.49345749]
[1752093039624,0.88898719,111040.0,111030.0,0.43345749]
[1752093039817,1.53394719,111040.0,111030.0,0.51345749]
[1752093040329,1.53394719,111040.0,111030.0,0.46843779]
[1752093040330,1.50107553,111040.0,111030.0,0.46843779]
[1752093040523,1.53399612,111040.0,111030.0,0.46843779]
[1752093041423,1.53399612,111040.0,111030.0,0.71843779]
[1752093041630,1.53399612,111040.0,111030.0,0.45843779]
[1752093042227,1.53399612,111040.0,111030.0,0.70843779]
[1752093042527,1.53399612,111040.0,111030.0,0.52835949]
[1752093042731,1.62268423,111040.0,111030.0,0.19714949]
[1752093042932,1.62268423,111040.0,111030.0,0.09680123]
[1752093042933,1.71028423,111040.0,111030.0,0.09680123]
[1752093043234,1.71028423,111040.0,111030.0,0.04680123]
[1752093043920,2.16615574,111040.0,111030.0,0.00700123]
[1752093044122,2.16515574,111040.0,111030.0,0.00700123]
[1752093044318,2.16615574,111040.0,111030.0,0.001]
[1752093044723,2.16615574,111040.0,111030.0,0.011]
[1752093044932,2.16615574,111040.0,111030.0,0.001]
[1752093045527,2.16615574,111040.0,111030.0,0.021]
[1752093045726,1.99034161,111040.0,111030.0,0.021]
[1752093045921,1.34538161,111040.0,111030.0,0.021]
[1752093046228,1.70994161,111040.0,111030.0,0.21431289]
[1752093046529,1.70994161,111040.0,111030.0,0.11926636]
[1752093047233,1.70994161,111040.0,111030.0,0.13926636]
[1752093047434,1.70994161,111040.0,111030.0,0.31935376]
[1752093047637,1.70994161,111040.0,111030.0,0.33481913]
[1752093047826,1.70994161,111040.0,111030.0,0.42501913]
[1752093048226,1.71194161,111040.0,111030.0,0.42601913]
[1752093048641,1.25978748,111040.0,111030.0,0.42601913]
[1752093049022,0.59210718,111040.0,111030.0,0.66183326]
[1752093049227,0.69587608,111040.0,111030.0,1.00183326]
[1752093049434,0.41203608,111040.0,111030.0,1.00183326]
[1752093049635,0.05123608,111040.0,111030.0,1.02583326]
[1752093049934,0.003,111040.0,111030.0,0.96164739]
[1752093050134,0.003,111040.0,111030.0,1.03583326]
[1752093050434,0.003,111040.0,111030.0,1.68043326]
[1752093050637,0.003,111040.0,111030.0,1.66043326]
[1752093050832,0.01831,111040.0,111030.0,1.66043326]
[1752093051133,0.1983811,111040.0,111030.0,0.71601913]
[1752093051442,0.89137013,111040.0,111030.0,0.49601913]
[1752093051733,1.62719013,111040.0,111030.0,0.21035173]
[1752093051937,1.438676,111040.0,111030.0,0.39043913]
[1752093052137,1.71449013,111040.0,111030.0,0.21035173]
[1752093052328,1.71449013,111040.0,111030.0,0.12605173]
[1752093053133,1.71449013,111040.0,111030.0,0.03605173]
[1752093053334,1.99030426,111040.0,111030.0,0.01605173]
[1752093053539,1.71449013,111040.0,111030.0,0.02928574]
[1752093054335,1.71449013,111040.0,111030.0,0.03928574]
[1752093054740,1.71449013,111040.0,111030.0,0.02605173]
[1752093055240,1.71449013,111040.0,111030.0,0.03605173]
[1752093055438,1.71449013,111040.0,111030.0,0.022]
[1752093056239,1.71449013,111040.0,111030.0,0.03603083]
[1752093056630,1.71449013,111040.0,111030.0,0.04603083]
[1752093056942,1.06997013,111040.0,111030.0,0.032]
[1752093057137,1.71433013,111040.0,111030.0,0.04603035]
[1752093057333,1.06997013,111040.0,111030.0,0.04603035]
[1752093057529,1.71429013,111040.0,111030.0,0.04603035]
[1752093058444,1.71429013,111040.0,111030.0,0.01603035]
[1752093059044,1.71429013,111040.0,111030.0,0.02926417]
[1752093059437,1.71429013,111040.0,111030.0,0.002]
[1752093059639,1.71429013,111040.0,111030.0,0.012]
[1752093060245,1.52034013,111040.0,111030.0,0.02738]
[1752093060542,1.52034013,111040.0,111030.0,0.02604019]
[1752093060740,1.69664013,111040.0,111030.0,0.012]
[1752093060941,1.69664013,111040.0,111030.0,0.02524035]
[1752093061136,1.69664013,111040.0,111030.0,0.012]
[1752093061339,1.69664013,111040.0,111030.0,0.02523253]
[1752093061540,1.69664013,111040.0,111030.0,0.02524021]
[1752093061737,1.69664013,111040.0,111030.0,0.012]
[1752093062337,1.97245426,111040.0,111030.0,0.002]
[1752093062637,1.97245426,111040.0,111030.0,0.012]
[1752093062841,2.05287031,111040.0,111030.0,0.012]
[1752093063236,2.37299031,111040.0,111030.0,0.01195225]
[1752093064043,2.37299031,111040.0,111030.0,0.00195225]
[1752093064238,2.37299031,111040.0,111030.0,5e-08]
[1752093064445,2.52257426,111040.0,111030.0,0.01340984]
[1752093064638,0.1801032,111020.0,111010.0,0.024]
[1752093064836,1.8882367,111020.0,111010.0,0.054]
[1752093065036,2.0660367,111020.0,111010.0,0.054]
[1752093065239,2.0660367,111020.0,111010.0,0.03]
[1752093065550,2.0660367,111020.0,111000.0,0.7131862]
[1752093065551,0.1801194,111010.0,111000.0,0.7131862]
[1752093065845,1.29354577,111020.0,111010.0,0.1801194]
[1752093066047,1.68823244,111020.0,111010.0,0.3636194]
[1752093066245,1.68823244,111020.0,111010.0,0.3836194]
[1752093066749,1.68723244,111020.0,111010.0,0.3836194]
[1752093067047,1.32643244,111020.0,111010.0,0.4236194]
[1752093068049,1.28140394,111020.0,111010.0,0.4216194]
[1752093068251,1.28240394,111020.0,111010.0,0.4216194]
[1752093068449,0.63832394,111020.0,111010.0,0.4216194]
[1752093068645,1.29744394,111020.0,111010.0,0.4316194]
[1752093068849,1.28328394,111020.0,111010.0,0.4346194]
[1752093069164,1.28328394,111020.0,111010.0,0.4496394]
[1752093070543,1.28328394,111020.0,111010.0,0.4596394]
[1752093070743,1.30817394,111020.0,111010.0,0.4596394]
[1752093072752,1.58398807,111020.0,111010.0,0.4596394]
[1752093073351,1.58398807,111020.0,111010.0,0.4496394]
[1752093073752,1.58398807,111020.0,111010.0,0.26952]
[1752093074251,1.58398807,111020.0,111010.0,0.2545]
[1752093074551,1.58398807,111020.0,111010.0,0.26952]
[1752093074552,2.03618807,111020.0,111010.0,0.26952]
[1752093074749,2.03618807,111020.0,111010.0,0.67969343]
[1752093074750,0.21498977,111020.0,111010.0,0.67969343]
[1752093074952,0.21498977,111020.0,111010.0,1.00969343]
[1752093075150,0.21498977,111020.0,111010.0,0.7338793]
[1752093075453,0.1821031,111020.0,111010.0,0.81487574]
[1752093075652,0.1821031,111020.0,111010.0,1.09068987]
[1752093076054,0.5429031,111020.0,111010.0,1.00969343]
[1752093076442,0.1821031,111020.0,111010.0,1.00969343]
[1752093076646,0.002,111020.0,111010.0,1.34068987]
[1752093076846,0.1821031,111020.0,111010.0,1.52084187]
[1752093077052,0.002,111020.0,111010.0,1.52084187]
[1752093077242,0.4508409,111040.0,111010.0,1.70152257]
[1752093077447,0.34779851,111040.0,111030.0,0.45590093]
[1752093077648,0.70859851,111040.0,111030.0,0.79590093]
[1752093077845,0.70859851,111040.0,111030.0,0.70880001]
[1752093078051,0.30277691,111040.0,111030.0,0.70880001]
[1752093078352,0.31793691,111040.0,111030.0,0.97461414]
[1752093078557,0.21373601,111040.0,111030.0,0.97461414]
[1752093079352,0.03364921,111040.0,111030.0,0.97461414]
[1752093079655,0.03364921,111040.0,111030.0,0.64461414]
[1752093079856,0.03364921,111040.0,111030.0,1.32541414]
[1752093080049,0.21371981,111040.0,111030.0,1.34965414]
[1752093080349,0.03364921,111040.0,111030.0,1.34965414]
[1752093080550,0.03264921,111040.0,111030.0,1.84965414]
[1752093080755,0.03464921,111040.0,111030.0,2.49313414]
[1752093082948,0.03464921,111040.0,111030.0,2.46889414]
[1752093083149,0.03464921,111040.0,111030.0,2.17305414]
[1752093083350,0.03464921,111040.0,111030.0,2.53305414]
[1752093085453,0.03455574,111040.0,111030.0,2.53305414]
[1752093085855,0.93208144,111070.0,111060.0,0.1800382]
[1752093086056,1.63549004,111070.0,111060.0,0.2400382]
[1752093086354,1.91130417,111070.0,111060.0,0.4165382]
[1752093087161,0.77580004,111070.0,111060.0,0.4165382]
[1752093087360,1.70997417,111070.0,111060.0,0.4165382]
[1752093087767,1.71945812,111070.0,111060.0,0.3246382]
[1752093088056,1.88371813,111070.0,111060.0,0.3246382]
[1752093088262,1.88371813,111070.0,111060.0,0.3146382]
[1752093088463,1.96413418,111070.0,111060.0,0.3146382]
[1752093088660,1.97386418,111070.0,111060.0,0.3296582]
[1752093088859,1.89444813,111070.0,111060.0,0.4254582]
[1752093089055,1.97486418,111070.0,111060.0,0.4254582]
[1752093089549,1.89444813,111070.0,111060.0,0.4254582]
[1752093089755,1.89444813,111070.0,111060.0,0.3426582]
[1752093089956,1.25124813,111070.0,111060.0,0.2580582]
[1752093090264,1.18134953,111070.0,111060.0,0.2580582]
[1752093090455,1.3671154,111070.0,111060.0,0.2580582]
[1752093090759,1.3671154,111070.0,111060.0,0.4424582]
[1752093091354,0.60636709,111070.0,111060.0,0.4424582]
[1752093091558,0.60636709,111070.0,111060.0,0.74251233]
[1752093091764,0.62152709,111070.0,111060.0,0.74251233]
[1752093092262,0.62152709,111070.0,111060.0,0.71827233]
[1752093092865,0.26372709,111070.0,111060.0,0.71627233]
[1752093093159,0.22172029,111070.0,111060.0,0.75051233]
[1752093093364,0.58252029,111070.0,111060.0,0.75051233]
[1752093093565,0.58252029,111070.0,111060.0,0.72627233]
[1752093093763,0.88322442,111070.0,111060.0,1.0005782]
[1752093093959,1.05822442,111070.0,111060.0,1.0005782]
[1752093094664,0.78241029,111070.0,111060.0,1.0005782]
[1752093094865,0.78241029,111070.0,111060.0,1.1589782]